bitfinex/quotes_ETHUSD_20250214
["timestamp","ask_amount","ask_price","bid_price","bid_amount"]
[1739506418724,0.274,2711.5,2711.3,0.6348]
[1739506418924,6.12988,2711.8,2711.3,0.6348]
[1739506419126,0.8108,2711.8,2711.4,0.16269873]
[1739506419326,1.12053546,2711.8,2711.4,0.16269873]
[1739506419693,1.0838,2711.8,2711.4,0.16269873]
[1739506419893,4.80812546,2711.8,2711.4,0.16269873]
[1739506420338,1.0838,2711.8,2711.4,0.16269873]
[1739506421308,0.273,2711.8,2711.4,0.16269873]
[1739506423134,0.55,2711.9,2711.4,0.16269873]
[1739506423296,3.72436546,2711.8,2711.4,0.16269873]
[1739506423657,3.68763,2711.8,2711.4,0.16269873]
[1739506423794,3.96055,2711.9,2711.4,0.16269873]
[1739506423996,3.72435546,2711.8,2711.4,0.16269873]
[1739506424646,3.68762,2711.8,2711.4,0.16269873]
[1739506424938,3.68799,2711.5,2711.4,0.16269873]
[1739506425305,3.72472546,2711.5,2711.0,3.6348]
[1739506425499,3.68799,2711.5,2711.4,0.16269873]
[1739506425700,3.68799,2711.5,2711.0,3.6348]
[1739506425922,0.8187,2711.6,2711.4,0.16269873]
[1739506426239,5.8136137,2711.6,2711.5,0.16268795]
[1739506426744,5.8136137,2711.6,2711.0,4.32337]
[1739506426929,5.05658,2711.6,2711.5,0.16243395]
[1739506427436,5.05658,2711.6,2711.0,0.6348]
[1739506427643,3.688,2711.5,2711.0,0.6348]
[1739506428441,5.05658,2711.6,2711.0,0.6348]
[1739506428951,3.68799,2711.5,2711.0,0.6348]
[1739506429156,3.72472546,2711.5,2711.0,0.6348]
[1739506429359,3.68799,2711.5,2711.0,0.6348]
[1739506430555,3.72472546,2711.5,2711.0,0.6348]
[1739506430755,3.68799,2711.5,2711.0,0.6348]
[1739506431060,7.41284546,2711.5,2711.0,0.6348]
[1739506431231,3.68799,2711.5,2711.0,0.6348]
[1739506431434,3.72472546,2711.5,2711.0,0.6348]
[1739506431632,3.68799,2711.5,2711.0,0.6348]
[1739506431832,3.72472546,2711.5,2711.0,0.6348]
[1739506432660,7.41283546,2711.5,2711.0,0.6348]
[1739506432963,7.41281546,2711.5,2711.0,0.6348]
[1739506433456,3.72472546,2711.5,2711.0,0.6348]
[1739506433832,3.72472546,2711.5,2711.1,0.16247708]
[1739506434360,3.68827,2711.3,2711.1,0.16247708]
[1739506434872,5.0009,2711.2,2711.1,0.16247708]
[1739506435059,1.3125,2711.2,2710.9,0.1484751]
[1739506435219,0.55,2711.2,2711.1,0.16240356]
[1739506435423,0.55,2711.2,2710.9,0.1484751]
[1739506435724,4.23842,2711.2,2711.0,0.16241434]
[1739506436037,0.55,2711.2,2711.0,0.16241434]
[1739506439876,3.68829,2711.3,2711.0,0.16241434]
[1739506440236,0.03673546,2711.2,2711.0,0.16241434]
[1739506441439,3.72521546,2711.2,2711.0,0.16241434]
[1739506441877,0.03673546,2711.2,2711.0,0.16241434]
[1739506442181,3.68829,2711.3,2711.0,0.16241434]
[1739506443055,0.7625,2711.4,2711.0,0.16241434]
[1739506445082,4.48745546,2711.4,2711.0,0.16241434]
[1739506445284,3.68838,2711.3,2711.0,0.16241434]
[1739506445454,0.03673546,2711.2,2711.0,0.16241434]
[1739506445780,3.68838,2711.3,2711.0,0.16241434]
[1739506446140,4.45068,2711.4,2711.0,0.16241434]
[1739506446452,4.48741546,2711.4,2711.0,0.16241434]
[1739506446650,5.58176201,2711.4,2711.0,0.16241434]
[1739506446853,5.54502655,2711.4,2711.0,0.16241434]
[1739506447152,1.85684655,2711.4,2711.0,0.16241434]
[1739506448443,0.7625,2711.4,2711.0,0.16241434]
[1739506448786,0.273,2711.4,2711.1,0.6348]
[1739506448954,0.03673546,2711.3,2711.1,0.6348]
[1739506449159,3.96113,2711.4,2711.1,0.6348]
[1739506449357,3.96113,2711.4,2711.2,0.16255988]
[1739506450177,3.68813,2711.4,2711.2,0.16255988]
[1739506450382,3.96113,2711.4,2711.2,0.16255988]
[1739506453286,3.68813,2711.4,2711.2,0.16255988]
[1739506453591,0.55,2711.4,2711.2,0.16255988]
[1739506456194,0.55,2711.5,2711.2,0.16255988]
[1739506456502,0.273,2711.7,2711.3,0.6348]
[1739506456681,0.273,2711.7,2711.3,0.7973357]
[1739506456866,3.96073,2711.7,2711.3,0.7973357]
[1739506457263,3.99746546,2711.7,2711.3,0.7973357]
[1739506457679,3.68787,2711.6,2711.3,0.7973357]
[1739506457887,3.68801,2711.5,2711.3,0.7973357]
[1739506458049,7.37583,2711.6,2711.3,0.7973357]
[1739506458250,3.68787,2711.6,2711.3,0.7973357]
[1739506460494,0.273,2711.7,2711.3,0.7973357]
[1739506460860,3.96081,2711.7,2711.3,0.7973357]
[1739506461307,3.68802,2711.5,2711.3,0.1625357]
[1739506461666,3.68802,2711.5,2711.4,0.16244474]
[1739506461866,3.68802,2711.5,2711.1,0.6348]
[1739506462081,3.68802,2711.5,2711.2,0.16246631]
[1739506463662,0.273,2711.7,2711.2,0.16246631]
[1739506463663,3.96085,2711.7,2711.2,0.16246631]
[1739506464181,3.68786,2711.6,2711.2,0.16246631]
[1739506464604,0.273,2711.7,2711.2,0.16246631]
[1739506464605,3.96079,2711.7,2711.2,0.16246631]
[1739506465007,3.68786,2711.6,2711.2,0.16246631]
[1739506465474,3.96079,2711.7,2711.2,0.16246631]
[1739506465680,7.64861,2711.7,2711.2,0.16246631]
[1739506465879,3.68796,2711.6,2711.2,0.16246631]
[1739506466101,3.688,2711.5,2711.2,0.16246631]
[1739506469321,0.7832,2711.5,2711.2,0.16246631]
[1739506469619,3.68815,2711.4,2711.2,0.16246631]
[1739506470193,0.55,2711.4,2711.2,0.16246631]
[1739506471111,3.6879,2711.6,2711.2,0.16246631]
[1739506471292,4.55280546,2711.5,2711.2,0.16246631]
[1739506471626,5.40417601,2711.5,2711.2,0.16246631]
[1739506471799,5.36744055,2711.5,2711.2,0.16246631]
[1739506472201,5.36744055,2711.5,2710.9,3.7832751]
[1739506472406,5.36744055,2711.5,2711.3,0.1624956]
[1739506472811,5.36744055,2711.5,2710.9,0.7832751]
[1739506472812,1.71610601,2711.5,2710.9,0.7832751]
[1739506473017,3.68827,2711.3,2710.9,0.7832751]
[1739506475547,3.68842,2711.2,2710.9,0.7832751]
[1739506475916,3.68815,2711.4,2710.9,0.7832751]
[1739506477226,7.37639,2711.4,2710.9,0.7832751]
[1739506477428,3.68815,2711.4,2710.9,0.7832751]
[1739506478959,3.68815,2711.4,2711.0,0.16252795]
[1739506480175,0.828,2711.5,2711.0,0.16252795]
[1739506480472,4.55277546,2711.5,2711.0,0.16252795]
[1739506480675,4.51604,2711.5,2711.0,0.16252795]
[1739506481185,4.55277546,2711.5,2711.0,0.16252795]
[1739506482028,3.68792,2711.6,2711.0,5.38121925]
[1739506482265,0.273,2711.5,2711.0,5.38121925]
[1739506482726,3.96105,2711.5,2711.0,1.69266925]
[1739506483164,3.99778546,2711.5,2711.0,1.69266925]
[1739506483740,0.30973546,2711.5,2711.0,1.69266925]
[1739506484370,3.96101,2711.5,2711.0,1.69266925]
[1739506484546,3.99774546,2711.5,2711.0,1.69266925]
[1739506485227,3.96101,2711.5,2711.0,1.69266925]
[1739506486048,3.72486546,2711.4,2711.0,0.16252795]
[1739506486227,3.96104,2711.5,2711.0,0.16252795]
[1739506486428,0.273,2711.5,2711.0,0.16252795]
[1739506486669,0.273,2711.5,2711.0,3.85117795]
[1739506487488,0.273,2711.5,2711.1,3.68841]
[1739506487970,3.68775,2711.7,2711.2,4.48572656]
[1739506487971,0.273,2711.7,2711.2,4.48572656]
[1739506488188,0.273,2711.7,2711.2,6.01586786]
[1739506488388,3.96074,2711.7,2711.2,6.01586786]
[1739506490055,0.273,2711.7,2711.2,6.01586786]
[1739506490253,3.99749546,2711.7,2711.2,2.32750786]
[1739506490587,3.96076,2711.7,2711.2,2.32750786]
[1739506491590,0.03673546,2711.6,2711.2,2.32750786]
[1739506492241,3.96076,2711.7,2711.2,2.32750786]
[1739506492502,3.96076,2711.7,2711.2,6.01587786]
[1739506492880,0.03673546,2711.6,2711.2,2.32750786]
[1739506493048,0.03673546,2711.6,2711.2,0.79736656]
[1739506493049,3.72461546,2711.6,2711.2,0.79736656]
[1739506493251,4.48978,2711.5,2711.2,0.16256656]
[1739506493496,0.03673546,2711.4,2711.2,0.16256656]
[1739506493860,0.03673546,2711.4,2711.0,0.6348]
[1739506494065,0.03673546,2711.4,2711.3,0.1624622]
[1739506494391,4.25447076,2711.4,2711.3,0.1624622]
[1739506494603,4.25447076,2711.4,2711.0,0.6348]
[1739506494763,3.72496546,2711.4,2711.3,0.1624622]
[1739506495102,3.68829,2711.3,2711.0,0.6348]
[1739506495246,3.68863,2711.1,2710.9,0.1484751]
[1739506500615,5.08780546,2711.0,2710.9,0.1484751]
[1739506500759,5.92871355,2711.0,2710.9,0.1484751]
[1739506501148,2.24004355,2711.0,2710.9,0.1484751]
[1739506501352,2.24004355,2711.0,2710.9,0.31122109]
[1739506501679,5.92871355,2711.0,2710.9,0.31122109]
[1739506502286,5.96544901,2711.0,2710.9,0.31122109]
[1739506502441,17.43544901,2711.0,2710.9,0.31122109]
[1739506502645,17.39871355,2711.0,2710.9,0.1484751]
[1739506503386,13.71004355,2711.0,2710.9,0.1484751]
[1739506503583,17.39871355,2711.0,2710.9,0.1484751]
[1739506505654,8.16171355,2711.0,2710.9,0.1484751]
[1739506510367,8.14671355,2711.0,2710.9,0.1484751]
[1739506510941,1.15064355,2711.0,2710.9,0.1484751]
[1739506511246,0.30973546,2711.0,2710.9,0.31188966]
[1739506511465,3.99840546,2711.0,2710.9,0.1484751]
[1739506511636,3.72540546,2711.0,2710.9,0.31188966]
[1739506511842,3.99840546,2711.0,2710.9,0.1484751]
[1739506512043,3.99840546,2711.0,2710.9,0.31188966]
[1739506512226,3.99840546,2711.0,2710.9,0.1484751]
[1739506512428,3.99840546,2711.0,2710.9,0.31188966]
[1739506515446,0.30973546,2711.0,2710.9,0.31188966]
[1739506515643,11.22541,2711.3,2710.9,0.31188966]
[1739506515839,0.273,2711.2,2710.9,0.31188966]
[1739506516043,0.273,2711.2,2711.0,0.6348]
[1739506516376,0.273,2711.2,2711.1,0.16340635]
[1739506516772,6.6185,2711.8,2711.1,0.16340635]
[1739506516944,0.273,2711.5,2711.2,2.1649413]
[1739506517274,0.273,2711.5,2711.2,2.32812957]
[1739506517770,6.67187,2712.0,2711.4,0.6348]
[1739506517969,0.273,2711.8,2711.4,4.32288]
[1739506518131,0.273,2711.8,2711.5,0.16292195]
[1739506518332,5.90537,2712.0,2711.5,0.16292195]
[1739506518532,6.17837,2712.0,2711.5,0.16292195]
[1739506520449,5.21039344,2712.2,2711.6,0.6348]
[1739506520664,0.273,2712.1,2711.9,1.5301413]
[1739506520870,0.30973546,2712.1,2711.7,0.16288701]
[1739506521080,4.51021,2712.1,2712.0,0.16285467]
[1739506521257,4.51021,2712.1,2711.6,0.6348]
[1739506521258,5.61039655,2712.1,2711.6,0.6348]
[1739506521456,0.823,2712.1,2712.0,0.16285467]
[1739506521655,0.823,2712.1,2711.6,4.32254]
[1739506521860,0.823,2712.1,2712.0,0.16285467]
[1739506522057,0.823,2712.1,2711.6,4.32254]
[1739506522255,0.273,2712.1,2712.0,0.16285467]
[1739506522446,4.47116,2712.4,2711.7,3.6877]
[1739506522644,0.823,2712.3,2711.8,0.6348]
[1739506522842,0.823,2712.3,2711.8,0.79767623]
[1739506523044,3.95991,2712.3,2711.8,0.79767623]
[1739506523253,3.68718,2712.1,2711.8,0.6348]
[1739506523456,3.68732,2712.0,2711.8,0.6348]
[1739506523659,3.68732,2712.0,2711.9,0.16286545]
[1739506524605,0.55,2712.1,2711.5,5.8528413]
[1739506524892,0.55,2712.1,2711.9,0.16286545]
[1739506525076,0.55,2712.1,2711.6,3.68785]
[1739506525274,0.55,2712.1,2712.0,0.16285467]
[1739506525479,0.55,2712.1,2711.6,3.68785]
[1739506525682,4.23717,2712.1,2712.0,0.16285467]
[1739506525874,3.68718,2712.1,2711.5,5.8528913]
[1739506526075,3.68718,2712.1,2712.0,0.16221296]
[1739506526252,0.30973546,2712.2,2711.9,0.6348]
[1739506526453,0.30973546,2712.2,2712.0,0.16221296]
[1739506526699,0.273,2712.2,2712.0,0.16221296]
[1739506526897,3.96005,2712.2,2712.0,0.16221296]
[1739506527059,3.99678546,2712.2,2712.0,0.16221296]
[1739506527255,0.30973546,2712.2,2712.0,0.16221296]
[1739506527476,3.68717,2712.1,2712.0,0.16221296]
[1739506529301,3.99681546,2712.2,2712.0,0.16221296]
[1739506529509,3.96008,2712.2,2712.0,0.16221296]
[1739506529656,3.99681546,2712.2,2712.0,0.16221296]
[1739506529857,3.96008,2712.2,2712.0,0.16221296]
[1739506530399,3.96004,2712.2,2712.0,0.16221296]
[1739506530599,0.273,2712.2,2712.0,0.16221296]
[1739506530775,3.68717,2712.1,2712.0,0.16221296]
[1739506530977,0.273,2712.2,2712.0,0.16221296]
[1739506531299,3.96009,2712.2,2712.0,0.16221296]
[1739506532000,0.273,2712.2,2712.0,0.16221296]
[1739506532387,0.273,2712.2,2712.0,0.22017228]
[1739506533902,3.96006,2712.2,2712.0,0.22017228]
[1739506534805,0.823,2712.6,2712.0,3.37475315]
[1739506535008,0.273,2712.6,2712.2,0.6348]
[1739506535312,3.68688,2712.4,2712.1,0.21982478]
[1739506535465,3.68688,2712.4,2712.3,0.21973214]
[1739506535661,0.30973546,2712.6,2712.0,0.6348]
[1739506535662,0.273,2712.6,2712.2,0.21974505]
[1739506535866,3.99634546,2712.6,2712.3,0.21973214]
[1739506536186,3.68699,2712.3,2712.0,0.6348]
[1739506536388,3.68699,2712.3,2711.7,3.68768]
[1739506536577,3.68699,2712.3,2711.7,3.68763]
[1739506538077,3.68707,2712.2,2711.6,0.6348]
[1739506538466,3.68727,2712.1,2711.6,0.6348]
[1739506538939,3.72367546,2712.3,2711.6,4.32262]
[1739506539065,3.72367546,2712.3,2711.7,0.21173496]
[1739506540105,3.72367546,2712.3,2711.7,3.89942496]
[1739506540293,3.68694,2712.3,2711.7,3.89942496]
[1739506540612,0.03673546,2712.2,2711.7,3.89942496]
[1739506541305,3.68694,2712.3,2711.7,3.89942496]
[1739506542019,3.68694,2712.3,2711.8,0.6348]
[1739506542220,3.68694,2712.3,2711.8,0.84652204]
[1739506542517,3.68692,2712.3,2711.8,0.84652204]
[1739506542880,0.55,2712.8,2711.8,0.84652204]
[1739506542881,3.68617,2712.9,2712.2,3.68696]
[1739506543219,3.68636,2712.7,2712.3,0.21167741]
[1739506543514,3.68636,2712.7,2712.1,0.6348]
[1739506543717,3.68636,2712.7,2712.4,0.2116645]
[1739506544030,3.68636,2712.7,2712.5,0.21165159]
[1739506544188,3.68636,2712.7,2712.1,0.6348]
[1739506544388,3.68636,2712.7,2712.6,0.21163868]
[1739506544611,3.68636,2712.7,2712.1,0.6348]
[1739506544817,3.68636,2712.7,2712.6,0.21163868]
[1739506545152,4.7426667,2712.7,2712.1,0.6348]
[1739506545329,0.8101,2712.6,2712.1,4.32195]
[1739506545486,4.4966,2712.6,2712.1,0.6348]
[1739506546030,7.37345,2712.5,2712.1,0.6348]
[1739506546230,3.72342546,2712.5,2711.8,3.68755]
[1739506546432,3.68727,2712.1,2711.6,0.6348]
[1739506546633,0.8101,2712.2,2711.6,0.6348]
[1739506546787,0.03673546,2712.2,2711.8,3.68748]
[1739506547125,0.273,2712.4,2711.9,0.6348]
[1739506547300,0.273,2712.4,2711.9,4.32221]
[1739506547501,3.68701,2712.3,2711.9,0.6348]
[1739506547917,3.68705,2712.2,2711.9,0.6348]
[1739506548298,1.0831,2712.4,2711.9,0.6348]
[1739506548628,0.273,2712.4,2711.9,0.6348]
[1739506549064,3.95977,2712.4,2711.9,0.6348]
[1739506549363,3.95977,2712.4,2711.8,3.68749]
[1739506549364,7.58389122,2713.6,2712.3,3.15458087]
[1739506549677,3.68491,2713.8,2713.0,0.6348]
[1739506549820,3.68491,2713.8,2713.0,4.32075]
[1739506550023,3.68491,2713.8,2713.2,3.68567]
[1739506550548,3.68511,2713.7,2713.0,4.32075]
[1739506550855,3.68524,2713.6,2713.0,0.6348]
[1739506551857,1.13142101,2713.7,2713.0,0.6348]
[1739506552178,0.273,2713.7,2713.2,3.68555]
[1739506552561,3.68463,2714.0,2713.3,0.6348]
[1739506552876,1.0726,2714.1,2713.5,3.68527]
[1739506553021,4.75707,2714.1,2713.5,3.68527]
[1739506553219,4.75707,2714.1,2713.3,4.32034]
[1739506553438,5.656196,2714.1,2713.4,3.68531]
[1739506553742,5.656196,2714.1,2713.3,0.6348]
[1739506553943,1.698726,2714.1,2713.5,3.68527]
[1739506554481,1.971726,2714.1,2713.6,0.20267641]
[1739506555080,1.971726,2714.1,2713.6,3.88778641]
[1739506555243,1.0726,2714.1,2713.7,3.685]
[1739506555451,1.0726,2714.1,2713.7,3.88766351]
[1739506556581,1.0726,2714.1,2713.7,0.20266351]
[1739506557223,1.0726,2714.1,2713.7,3.68495]
[1739506557427,1.0726,2714.1,2713.8,0.20265061]
[1739506557860,1.0726,2714.1,2713.7,3.68495]
[1739506558064,1.0726,2714.1,2713.9,0.20263772]
[1739506558378,1.0726,2714.1,2714.0,0.20262482]
[1739506558580,1.0726,2714.1,2713.7,3.68495]
[1739506558880,0.55,2714.2,2714.0,0.20262482]
[1739506559777,0.55,2714.2,2714.0,3.88719482]
[1739506560120,0.55,2714.2,2714.1,3.68446]
[1739506560624,0.55,2714.2,2714.1,3.88690653]
[1739506562163,0.55,2714.2,2714.1,0.20244653]
[1739506562360,0.55,2714.2,2714.0,3.68449]
[1739506562668,0.55,2714.2,2714.1,3.88690653]
[1739506563459,0.55,2714.2,2714.1,0.20244653]
[1739506564554,0.55,2714.2,2714.1,3.88690653]
[1739506564755,0.55,2714.2,2714.1,4.52170653]
[1739506565743,0.55,2714.2,2714.1,0.83724653]
[1739506566083,0.55,2714.2,2714.1,4.52170653]
[1739506567567,0.55,2714.2,2714.1,7.6762874]
[1739506571674,0.55,2714.2,2714.1,0.20244653]
[1739506571851,0.55,2714.2,2714.1,3.88690653]
[1739506572054,0.55,2714.2,2714.1,0.20244653]
[1739506572269,0.55,2714.2,2713.9,3.68465]
[1739506572454,0.55,2714.2,2714.1,0.20097797]
[1739506572654,0.55,2714.2,2714.0,3.68458]
[1739506572967,0.55,2714.2,2714.1,0.20097797]
[1739506573164,0.55,2714.2,2714.1,3.88543797]
[1739506574404,0.55,2714.2,2714.1,7.67481884]
[1739506576686,0.55,2714.2,2714.1,10.67481884]
[1739506579366,0.55,2714.2,2714.1,7.67481884]
[1739506586626,0.55,2714.2,2714.1,7.04001884]
[1739506587233,0.55,2714.2,2714.1,0.20097797]
[1739506587412,0.55,2714.2,2713.8,9.83932087]
[1739506587600,0.55,2714.2,2714.1,0.19327758]
[1739506587936,0.7875,2714.1,2713.8,3.15458087]
[1739506588617,0.7875,2714.1,2713.7,3.68497]
[1739506591593,0.7875,2713.7,2713.2,6.84022087]
[1739506591792,0.7875,2713.7,2713.3,3.68553]
[1739506592116,0.7875,2713.7,2713.5,3.68526]
[1739506592322,0.821,2713.9,2713.5,3.68526]
[1739506593029,5.59108,2714.0,2713.7,3.68489]
[1739506593405,0.55,2714.2,2713.8,6.83933087]
[1739506593593,0.55,2714.2,2714.1,6.83904087]
[1739506597137,0.8012,2714.8,2714.1,3.15458087]
[1739506597439,0.8012,2714.8,2714.5,3.68388]
[1739506598448,0.8012,2714.8,2714.6,3.68374]
[1739506598953,0.8012,2714.8,2714.5,3.68388]
[1739506599248,3.95497,2715.2,2714.6,3.87720306]
[1739506599249,0.823,2715.1,2714.6,3.87720306]
[1739506600009,4.50619,2715.1,2714.6,0.19348306]
[1739506600313,4.50645,2714.9,2714.3,3.0]
[1739506600545,4.50645,2714.9,2714.7,0.19346359]
[1739506600712,4.50645,2714.9,2714.3,3.68417]
[1739506600912,4.50645,2714.9,2714.8,0.19306883]
[1739506600913,0.823,2714.9,2714.8,0.19306883]
[1739506601113,0.823,2714.9,2714.2,3.68427]
[1739506601313,4.5064,2714.9,2714.8,0.19306883]
[1739506601569,0.7966,2714.8,2714.1,3.15458087]
[1739506601755,3.68374,2714.7,2714.1,3.15458087]
[1739506602061,0.7966,2714.8,2714.2,3.87741618]
[1739506602215,3.68366,2714.7,2714.2,3.32741618]
[1739506602414,4.48013,2714.8,2714.3,0.18623521]
[1739506602637,1.3265089,2714.8,2714.3,3.68416]
[1739506602849,0.7966,2714.8,2714.4,0.18622232]
[1739506605701,0.7966,2714.8,2714.4,3.87026232]
[1739506606268,0.7966,2714.8,2714.4,3.87018232]
[1739506607194,0.7966,2714.8,2714.4,0.18622232]
[1739506607391,3.72033546,2714.8,2714.4,0.18622232]
[1739506607566,5.33113645,2714.7,2714.0,3.68449]
[1739506607765,3.72052546,2714.6,2714.5,0.18632133]
[1739506607973,3.68379,2714.6,2714.0,3.68449]
[1739506608317,0.7947,2714.4,2714.1,0.18635974]
[1739506608678,0.7947,2714.4,2713.9,3.0]
[1739506608876,0.7947,2714.4,2714.2,0.18634685]
[1739506609124,0.7947,2714.4,2713.9,6.68472]
[1739506609317,0.7947,2714.4,2714.3,0.18633395]
[1739506609614,0.7947,2714.4,2713.8,7.47416087]
[1739506609615,1.24622255,2714.4,2713.6,0.6348]
[1739506609816,4.47888,2714.4,2714.3,0.18633395]
[1739506609982,5.30088,2714.4,2713.6,0.6348]
[1739506610188,6.09368,2714.6,2714.4,3.68397]
[1739506610385,0.7746,2714.8,2714.6,3.68376]
[1739506610611,0.7746,2715.0,2714.7,0.1864404]
[1739506610974,0.272,2715.1,2714.7,0.1864404]
[1739506611421,0.7681,2715.2,2714.8,3.68341]
[1739506611716,0.7681,2715.2,2714.8,3.86981117]
[1739506615052,0.7681,2715.2,2714.8,0.18640117]
[1739506615258,0.7681,2715.2,2714.8,3.86989117]
[1739506615411,0.7681,2715.2,2714.8,3.68349]
[1739506615614,0.7681,2715.2,2714.6,3.68375]
[1739506615615,0.7681,2715.2,2714.9,0.18580244]
[1739506615919,0.7681,2715.2,2714.7,3.68364]
[1739506616115,0.7681,2715.2,2715.0,0.18582245]
[1739506616320,0.7681,2715.2,2714.8,3.68351]
[1739506616521,0.7681,2715.2,2715.1,0.18580957]
[1739506616720,0.7681,2715.2,2714.8,3.68351]
[1739506616951,0.7681,2715.2,2715.1,0.18580957]
[1739506617147,0.8028,2715.6,2714.9,0.6348]
[1739506617455,4.48485,2715.9,2715.3,4.31752]
[1739506617617,5.328712,2715.9,2715.3,4.31752]
[1739506617816,5.600712,2715.9,2715.3,4.31752]
[1739506618678,3.68224,2715.8,2715.3,0.6348]
[1739506618842,3.68224,2715.8,2715.1,7.47241087]
[1739506619037,3.68225,2715.8,2715.4,0.18568536]
[1739506619239,3.68225,2715.8,2715.1,7.47241087]
[1739506619240,3.68234,2715.7,2715.1,4.31783]
[1739506619448,3.68234,2715.7,2715.5,0.18567247]
[1739506619648,0.5600912,2715.8,2715.3,3.68273]
[1739506619859,1.0734,2715.7,2715.6,0.18550166]
[1739506620181,4.75569,2715.7,2715.0,4.31801]
[1739506620379,4.75569,2715.7,2715.6,0.18545561]
[1739506620607,0.8322,2715.4,2714.8,4.31829]
[1739506620805,3.68287,2715.3,2714.8,0.6348]
[1739506621222,3.68287,2715.3,2714.7,3.68363]
[1739506621426,6.15128,2715.4,2715.0,3.68323]
[1739506621585,6.15128,2715.4,2715.1,0.6348]
[1739506621586,5.31908,2715.4,2715.1,0.6348]
[1739506621773,0.8163,2715.7,2715.2,3.68284]
[1739506621774,1.0883,2715.7,2715.2,3.68284]
[1739506622129,1.0883,2715.7,2715.3,3.68273]
[1739506622827,1.0883,2715.9,2715.4,3.68268]
[1739506623039,0.368209,2715.8,2715.2,3.68284]
[1739506623235,0.368209,2715.8,2715.3,3.68274]
[1739506623396,0.368209,2715.8,2715.3,3.68278]
[1739506623602,4.77034,2715.9,2715.4,3.68268]
[1739506624245,4.77034,2715.9,2715.2,3.68284]
[1739506624387,4.46091,2715.7,2715.1,3.6831]
[1739506624780,0.7785,2715.7,2715.2,3.68295]
[1739506625317,4.4608,2715.7,2715.0,3.68318]
[1739506625517,4.12859,2715.6,2715.0,3.68318]
[1739506625676,0.7785,2715.3,2714.7,0.6348]
[1739506625872,4.46146,2715.3,2714.7,0.6348]
[1739506626277,7.36613,2715.2,2714.6,3.68369]
[1739506626725,3.68305,2715.2,2714.4,4.31881]
[1739506626883,3.68305,2715.2,2714.5,3.68381]
[1739506627789,3.68305,2715.2,2714.6,3.68368]
[1739506628029,3.68305,2715.2,2714.4,4.31881]
[1739506628223,3.68311,2715.1,2714.5,3.0]
[1739506628854,3.68311,2715.1,2714.6,0.185545]
[1739506629051,0.8294,2715.0,2714.6,0.185545]
[1739506629254,3.68341,2714.9,2714.4,0.6348]
[1739506629464,4.78473,2715.0,2714.4,0.6348]
[1739506629654,4.78473,2715.0,2714.5,0.18555789]
[1739506630139,1.1014,2715.0,2714.5,0.18555789]
[1739506630495,4.78465,2715.0,2714.5,0.18555789]
[1739506630892,3.68339,2714.9,2714.5,0.18555789]
[1739506631190,3.68367,2714.7,2714.5,0.18555789]
[1739506631552,3.68367,2714.7,2714.2,3.0]
[1739506631779,3.68367,2714.7,2714.6,0.18563057]
[1739506631944,4.49499,2714.6,2714.0,4.31934]
[1739506632279,4.49499,2714.6,2714.1,0.18569503]
[1739506632280,3.68413,2714.4,2714.1,0.18569503]
[1739506632582,3.68402,2714.5,2713.8,3.68482]
[1739506632761,3.68402,2714.5,2714.2,0.18572163]
[1739506632954,3.68402,2714.5,2713.9,3.68463]
[1739506633152,3.68402,2714.5,2714.3,0.18570874]
[1739506633336,3.68402,2714.5,2713.8,3.68482]
[1739506633337,0.449522,2714.4,2713.8,3.68482]
[1739506633736,3.68402,2714.5,2713.9,0.18576032]
[1739506634269,7.36805,2714.5,2713.9,0.18576032]
[1739506634438,3.68402,2714.5,2713.9,0.18576032]
[1739506635466,3.68392,2714.5,2713.9,0.18576032]
[1739506636291,3.68392,2714.5,2713.9,3.87046032]
[1739506636498,4.501802,2714.5,2713.9,3.87046032]
[1739506637199,9.820882,2714.5,2713.9,3.87046032]
[1739506638203,5.31908,2714.5,2714.1,3.68443]
[1739506638389,5.59108,2714.5,2714.1,4.31923]
[1739506638565,5.59108,2714.5,2714.2,0.1864127]
[1739506640560,9.27502,2714.5,2714.2,0.1864127]
[1739506640961,9.27502,2714.5,2713.9,4.31949]
[1739506641162,9.27502,2714.5,2714.3,0.18659072]
[1739506641396,6.968072,2714.5,2714.0,3.68448]
[1739506641612,5.59108,2714.5,2714.4,0.18657783]
[1739506641813,0.272,2714.5,2714.0,3.68448]
[1739506642405,0.272,2714.5,2714.1,0.18661651]
[1739506643346,0.272,2714.5,2714.1,3.87102651]
[1739506643701,1.0832,2714.6,2714.2,3.68432]
[1739506643908,0.272,2714.7,2714.3,4.3189]
[1739506644150,0.272,2714.7,2714.3,4.50549072]
[1739506645149,1.044,2714.8,2714.3,4.50548072]
[1739506645348,1.044,2714.8,2714.4,3.68404]
[1739506645548,5.31908,2714.9,2714.5,3.68383]
[1739506645549,5.59108,2714.9,2714.5,3.68383]
[1739506645707,5.59108,2714.9,2714.5,3.87039493]
[1739506645907,5.59108,2714.9,2714.7,3.68362]
[1739506646307,5.59108,2714.9,2714.8,0.1863551]
[1739506646743,5.31908,2714.9,2714.8,0.1863551]
[1739506647107,5.31908,2714.9,2714.6,3.68378]
[1739506647307,5.31908,2714.9,2714.8,0.1863551]
[1739506647604,5.31908,2714.9,2714.6,3.68378]
[1739506647805,5.31908,2714.9,2714.8,0.1863551]
[1739506648232,5.31908,2714.9,2714.6,3.68378]
[1739506648546,5.31908,2714.9,2714.7,0.18636799]
[1739506649250,6.34758,2715.2,2714.7,0.18636799]
[1739506649450,1.003043,2715.1,2714.7,0.18636799]
[1739506650353,4.686173,2715.1,2714.7,0.18636799]
[1739506650920,8.369383,2715.1,2714.7,0.18636799]
[1739506651122,4.686173,2715.1,2714.7,0.18636799]
[1739506651339,3.68332,2715.0,2714.4,3.68401]
[1739506651509,3.68332,2715.0,2714.8,0.18605228]
[1739506651709,3.68332,2715.0,2714.4,3.68401]
[1739506651710,5.054723,2715.0,2714.4,3.68401]
[1739506652004,3.68332,2715.0,2714.9,0.18603939]
[1739506652210,3.68313,2715.1,2714.4,3.68401]